bitfinex/quotes_ETHUSD_20250908
["timestamp","ask_amount","ask_price","bid_price","bid_amount"]
[1757360048890,17.07683604,4301.2,4301.1,0.022]
[1757360050764,24.43006816,4301.2,4301.1,0.022]
[1757360050970,28.35098451,4301.2,4301.1,0.022]
[1757360051465,16.46571729,4301.2,4301.1,0.022]
[1757360051664,15.90631729,4301.2,4301.1,0.022]
[1757360052614,17.35471729,4301.2,4301.1,0.022]
[1757360053446,17.78311729,4301.2,4301.1,0.022]
[1757360054659,20.78311729,4301.2,4301.1,0.022]
[1757360056021,26.47418451,4301.2,4301.1,0.022]
[1757360056226,26.78558451,4301.2,4301.1,0.022]
[1757360056426,27.92258451,4301.2,4301.1,0.022]
[1757360057667,28.35098451,4301.2,4301.1,0.022]
[1757360059778,28.35131293,4301.2,4301.1,0.022]
[1757360060435,0.792,4300.5,4299.4,0.4639]
[1757360060637,0.792,4300.5,4298.8,1.1586]
[1757360060638,13.68534045,4300.2,4298.8,1.1586]
[1757360060838,18.72055252,4300.2,4299.3,0.4639]
[1757360061036,20.28595252,4300.2,4299.3,0.4639]
[1757360061552,20.28595252,4300.2,4299.0,1.8475]
[1757360061757,20.28595252,4300.2,4299.0,0.7139]
[1757360061940,20.28595252,4300.2,4299.3,0.4639]
[1757360062339,20.28595252,4300.2,4298.4,4.08843424]
[1757360062340,4.393,4299.6,4297.1,0.02]
[1757360062562,10.68642252,4298.2,4297.1,0.02]
[1757360062741,13.68658491,4297.9,4297.2,0.09309784]
[1757360062943,3.0,4297.8,4297.1,0.02]
[1757360063161,6.11909671,4297.2,4297.1,0.02]
[1757360063337,2.32700686,4297.4,4297.1,0.02]
[1757360063675,2.32700686,4297.4,4297.1,0.3273]
[1757360063676,3.11909671,4297.2,4297.1,0.3273]
[1757360064044,0.792,4297.2,4297.1,1.7748]
[1757360064245,0.792,4297.2,4297.1,0.6412]
[1757360064464,0.792,4297.2,4297.1,1.7748]
[1757360065775,0.792,4297.2,4297.1,2.18749959]
[1757360065979,1.137,4299.4,4297.1,1.7748]
[1757360066178,1.137,4299.4,4296.8,3.941]
[1757360066179,0.3114,4297.2,4296.8,0.025]
[1757360066383,0.792,4297.0,4296.8,0.025]
[1757360066531,0.792,4297.0,4296.9,0.4639]
[1757360066735,0.792,4297.3,4296.9,1.9048]
[1757360067032,0.792,4297.6,4297.0,1.5975]
[1757360067533,0.792,4297.6,4296.8,0.025]
[1757360067534,2.32725918,4296.9,4296.8,0.025]
[1757360067734,3.11925918,4296.9,4296.8,0.025]
[1757360068036,0.792,4296.9,4296.8,0.3323]
[1757360069183,0.792,4296.9,4296.8,0.025]
[1757360069381,3.11925918,4296.9,4296.8,0.025]
[1757360069677,2.03014127,4296.9,4296.8,0.3323]
[1757360069845,0.792,4296.9,4296.8,0.3323]
[1757360070046,3.43065918,4296.9,4296.8,0.025]
[1757360070283,7.99605918,4296.9,4296.8,0.025]
[1757360070434,6.11936751,4296.7,4296.6,4.0]
[1757360070781,12.10842343,4296.7,4296.6,4.0]
[1757360071082,11.99094119,4296.7,4296.6,4.0]
[1757360071233,13.56934119,4296.7,4296.6,4.0]
[1757360072131,7.30397368,4296.7,4296.1,0.02]
[1757360072466,0.792,4296.0,4295.1,0.02]
[1757360072668,0.792,4295.8,4295.1,0.02]
[1757360072972,0.3153,4295.2,4295.1,1e-08]
[1757360073279,10.40548029,4295.2,4295.1,1e-08]
[1757360073487,8.01388029,4295.2,4295.1,1e-08]
[1757360073983,32.68292467,4295.2,4295.1,1e-08]
[1757360074187,0.792,4295.1,4293.1,0.12]
[1757360074486,0.792,4295.1,4294.1,1e-08]
[1757360074487,2.32850556,4294.6,4294.1,1e-08]
[1757360074635,6.43602246,4294.2,4294.1,1e-08]
[1757360074835,3.43602246,4294.2,4294.1,1e-08]
[1757360075080,13.78542246,4294.2,4294.1,1e-08]
[1757360075247,15.39682881,4294.2,4294.1,1e-08]
[1757360075466,3.12126488,4293.2,4293.1,0.12]
[1757360075695,4.90726488,4293.2,4293.1,0.12]
[1757360075993,3.12142765,4292.9,4292.8,0.025]
[1757360076197,11.80907233,4292.9,4292.8,0.025]
[1757360076400,13.24127233,4292.9,4292.8,0.025]
[1757360076560,13.70277233,4292.9,4292.8,0.025]
[1757360076897,2.2242,4292.9,4292.8,0.025]
[1757360077064,4.788,4292.9,4292.8,0.025]
[1757360077398,12.01312765,4292.9,4292.8,0.025]
[1757360077553,3.792,4292.3,4292.1,0.02]
[1757360077753,10.14680755,4292.2,4292.1,1e-08]
[1757360077986,10.14680755,4292.2,4291.8,1e-08]
[1757360077987,2.32986183,4292.1,4291.8,1e-08]
[1757360078200,6.1219704,4291.9,4291.8,1e-08]
[1757360078352,6.4372704,4291.9,4291.8,1e-08]
[1757360078559,12.0506704,4291.9,4291.8,1e-08]
[1757360078990,12.0506704,4291.9,4290.5,0.01]
[1757360078991,3.12213328,4291.6,4290.5,0.01]
[1757360079302,0.792,4291.0,4290.5,0.01]
[1757360079598,2.33042843,4291.1,4290.1,0.04]
[1757360079599,3.12289366,4290.2,4290.1,0.04]
[1757360079766,11.95089366,4290.2,4290.1,1e-08]
[1757360079956,6.12343709,4289.2,4289.1,1e-08]
[1757360080155,0.792,4289.2,4289.1,1e-08]
[1757360080654,7.17143709,4289.2,4289.1,1e-08]
[1757360080861,3.12349145,4289.1,4288.8,0.025]
[1757360081068,6.12360017,4288.9,4288.8,0.025]
[1757360081312,9.41227933,4288.9,4288.8,0.025]
[1757360081510,13.99067933,4288.9,4288.8,0.025]
[1757360081809,12.41527933,4288.9,4288.8,0.025]
[1757360082011,9.47417933,4288.9,4288.8,0.025]
[1757360082320,5.587,4290.0,4288.8,0.025]
[1757360082321,1.1169,4290.9,4288.8,4.22935006]
[1757360082455,0.17075218,4289.6,4288.8,1.4413]
[1757360082686,0.792,4289.8,4288.8,1.4413]
[1757360082902,1.1073,4288.9,4288.8,0.025]
[1757360083086,1.1073,4288.9,4288.1,0.14]
[1757360083087,0.792,4288.8,4288.1,0.14]
[1757360083311,0.792,4288.3,4288.1,0.14]
[1757360083490,13.89368078,4288.2,4288.1,0.14]
[1757360083675,12.31728078,4288.2,4288.1,0.14]
[1757360084009,3.12398078,4288.2,4288.1,0.14]
[1757360084308,0.792,4288.2,4288.1,0.4308]
[1757360084475,3.61388078,4288.2,4288.1,0.14]
[1757360084676,1.2819,4288.2,4288.1,0.14]
[1757360084908,1.2819,4288.2,4286.8,0.025]
[1757360084909,0.792,4287.8,4286.1,2.33311609]
[1757360085091,0.792,4287.4,4286.2,2.78946891]
[1757360085290,0.792,4287.2,4286.6,0.14]
[1757360085609,4.146,4287.1,4286.6,0.4564]
[1757360085783,4.146,4287.1,4286.2,0.70011914]
[1757360085957,4.146,4287.1,4286.1,0.4564]
[1757360085958,4.146,4287.1,4284.8,0.025]
[1757360085959,0.792,4286.2,4284.8,0.025]
[1757360086307,6.3664,4287.0,4284.8,0.025]
[1757360086308,0.792,4286.0,4285.3,0.70011914]
[1757360086459,1.788,4286.9,4286.1,0.2908]
[1757360086460,0.792,4286.8,4286.1,0.2908]
[1757360086660,1.05,4286.8,4285.3,0.70011914]
[1757360086859,0.792,4286.7,4285.8,0.4564]
[1757360087294,0.792,4287.0,4286.6,0.2908]
[1757360087712,0.792,4287.3,4286.7,0.4564]
[1757360087885,0.04,4287.9,4287.2,0.2908]
[1757360088285,0.792,4287.3,4287.2,0.2908]
[1757360088535,3.12447031,4287.3,4287.2,0.2908]
[1757360088752,3.12447031,4287.3,4286.7,0.4564]
[1757360088753,3.43691734,4287.3,4286.7,0.4564]
[1757360088892,0.792,4287.0,4286.3,0.4564]
[1757360089094,0.792,4287.2,4286.9,0.99094201]
[1757360089330,3.12463354,4287.0,4286.9,0.99094201]
[1757360089511,1.86496295,4287.0,4286.9,0.99094201]
[1757360089712,0.792,4287.0,4286.9,0.99094201]
[1757360089933,0.792,4287.0,4286.9,1.44734201]
[1757360090093,0.4899,4288.2,4286.9,2.24884201]
[1757360090452,0.4899,4288.2,4287.0,2.2454]
[1757360090611,4.206,4288.9,4287.0,3.0469]
[1757360090852,4.206,4288.9,4287.8,0.2908]
[1757360091026,0.04,4288.9,4287.8,8.57799833]
[1757360091212,0.04,4288.9,4287.8,9.83589833]
[1757360091811,0.04,4288.9,4287.8,5.66989833]
[1757360092139,0.04,4288.9,4288.7,2.3317089]
[1757360092341,0.04,4288.9,4288.7,11.2857089]
[1757360092525,0.04,4288.9,4288.7,12.8344089]
[1757360092730,0.04,4288.9,4288.7,12.9504089]
[1757360092927,0.04,4288.9,4288.7,8.7854089]
[1757360093131,0.04,4288.9,4288.7,12.8344089]
[1757360093801,0.04,4288.9,4288.7,8.6694089]
[1757360093997,0.04,4288.9,4288.7,12.8334089]
[1757360095344,0.015,4288.9,4288.8,5.33165454]
[1757360095542,0.015,4288.9,4288.8,6.58955454]
[1757360095887,0.015,4288.9,4288.8,6.88035454]
[1757360096476,0.015,4288.9,4288.8,11.04235454]
[1757360097362,0.025,4289.8,4289.7,2.33116534]
[1757360097564,0.025,4289.8,4289.7,8.27816534]
[1757360097725,0.025,4289.8,4289.7,8.56896534]
[1757360097926,0.025,4289.8,4289.7,9.32686534]
[1757360098355,1e-08,4289.9,4289.8,2.331111]
[1757360098651,1e-08,4289.9,4289.8,6.943511]
[1757360098965,1e-08,4289.9,4289.8,4.4508]
[1757360099119,1e-08,4289.9,4289.8,4.159]
[1757360099667,1e-08,4289.9,4289.8,4.4498]
[1757360099966,1e-08,4289.9,4289.8,4.9062]
[1757360100350,1e-08,4289.9,4289.8,7.237311]
[1757360100667,1e-08,4289.9,4289.8,4.162]
[1757360101402,0.792,4289.8,4288.8,0.025]
[1757360101645,0.792,4289.6,4288.8,0.025]
[1757360101802,1.0554,4289.7,4288.8,0.025]
[1757360102003,1e-08,4289.9,4288.9,1.789]
[1757360102277,0.792,4289.6,4288.9,1.789]
[1757360102471,0.4661,4289.5,4288.8,0.20067806]
[1757360102770,0.792,4289.2,4288.8,0.22567806]
[1757360103070,0.792,4289.4,4288.8,0.05]
[1757360103301,0.2991,4288.9,4288.8,0.05]
[1757360103418,1.0911,4288.9,4288.8,0.05]
[1757360103621,0.792,4288.9,4288.8,0.05]
[1757360103865,1.0911,4288.9,4288.8,0.05]
[1757360104067,2.6126,4288.9,4288.8,0.05]
[1757360104268,5.41260201,4288.9,4288.8,0.05]
[1757360104723,5.75050268,4288.9,4288.8,0.05]
[1757360104922,5.53931132,4288.9,4288.8,0.025]
[1757360105178,5.75048487,4288.9,4288.8,0.025]
[1757360105539,9.95367983,4288.9,4288.8,0.025]
[1757360105744,6.23715353,4288.9,4288.8,0.025]
[1757360105989,5.53931132,4288.9,4288.8,0.025]
[1757360106245,9.74236906,4288.9,4288.8,0.025]
[1757360106449,10.44057519,4288.9,4288.8,0.025]
[1757360106789,10.22918807,4288.9,4288.8,0.025]
[1757360107203,10.44059546,4288.9,4288.8,0.025]
[1757360109046,0.792,4288.8,4287.8,0.025]
[1757360109247,3.1239264,4288.3,4287.8,0.025]
[1757360109428,3.42324393,4287.9,4287.8,0.025]
[1757360109632,3.7616416,4287.9,4287.8,0.025]
[1757360109854,6.86151098,4287.9,4287.8,0.025]
[1757360110052,7.55996213,4287.9,4287.8,0.025]
[1757360110268,9.02971373,4287.9,4287.8,0.025]
[1757360110459,8.35198159,4287.9,4287.8,0.025]
[1757360110676,12.06016258,4287.9,4287.8,0.025]
[1757360110876,4.96505568,4287.9,4287.8,0.025]
[1757360111076,0.4661,4288.3,4287.8,0.33]
[1757360111077,0.48745359,4288.3,4287.8,0.33]
[1757360111285,0.4661,4288.6,4287.8,0.33]
[1757360111286,2.33188444,4288.4,4287.8,0.33]
[1757360111435,6.99291543,4288.6,4287.8,0.33]
[1757360111628,2.4588084,4288.5,4287.8,0.33]
[1757360111828,2.33195823,4288.3,4287.8,0.33]
[1757360112089,4.6611,4288.6,4287.8,0.33]
[1757360112301,4.6611,4288.6,4287.8,0.025]
[1757360112486,3.42324393,4287.9,4287.8,0.025]
[1757360113273,3.12414393,4287.9,4287.8,0.025]
[1757360113475,3.6697619,4287.9,4287.8,0.025]
[1757360113670,3.12414393,4287.9,4287.8,0.025]
[1757360114041,3.42324393,4287.9,4287.8,0.025]
[1757360114357,5.07171528,4287.9,4287.8,0.027]
[1757360114554,5.07171528,4287.9,4286.1,0.4779]
[1757360114555,0.792,4287.5,4286.1,0.04]
[1757360114885,3.12452472,4287.2,4286.1,0.04]
[1757360115039,7.74259607,4287.2,4286.1,0.04]
[1757360115241,9.75157607,4287.2,4286.1,0.04]
[1757360115445,9.75157607,4287.2,4286.9,0.002]
[1757360115639,5.55957607,4287.2,4286.9,0.002]
[1757360116107,0.792,4286.9,4286.1,0.04]
[1757360116426,3.12506891,4286.2,4286.1,0.04]
[1757360116535,3.12506891,4286.2,4284.6,1.79]
[1757360116536,0.792,4285.4,4284.6,1.79]
[1757360116767,2.75914026,4286.2,4281.8,0.93628163]
[1757360116768,0.792,4285.0,4281.8,0.93628163]
[1757360117007,0.792,4285.2,4282.5,2.33508464]
[1757360117008,2.89242597,4283.0,4282.5,2.33508464]
[1757360117286,4.1320371,4283.8,4283.4,2.3345642]
[1757360117491,0.48698485,4283.7,4279.7,1.10704137]
[1757360117689,0.81162045,4282.5,4282.0,2.3353573]
[1757360117871,2.8407001,4282.6,4282.5,2.33508464]
[1757360118041,0.48695758,4282.6,4282.5,5.64008464]
[1757360118243,0.48695758,4282.6,4282.5,6.85008464]
[1757360118646,0.48695758,4282.6,4282.5,7.12748464]
[1757360118807,0.792,4284.9,4282.6,33.0]
[1757360119105,0.792,4284.9,4282.8,3.0]
[1757360119306,0.792,4285.1,4284.0,2.3342316]
[1757360119460,0.04,4283.9,4283.8,6.82677602]
[1757360119805,0.04,4283.9,4283.8,11.92177602]
[1757360120370,0.025,4284.8,4283.8,11.92177602]
[1757360120371,0.025,4284.8,4284.7,2.33388568]
[1757360120686,0.025,4284.8,4284.7,11.33788568]
[1757360120923,0.025,4284.8,4284.7,11.92028568]
[1757360121993,0.04,4284.9,4284.8,5.33383121]
[1757360122175,0.04,4285.9,4285.8,2.33328666]
[1757360122377,0.04,4285.9,4285.8,6.84928666]
[1757360122686,0.04,4285.9,4285.7,1.79]
[1757360122856,2.3135,4285.8,4285.0,5.33370708]
[1757360123053,0.792,4285.8,4285.0,5.33370708]
[1757360123289,1.04,4285.9,4285.0,5.33370708]
[1757360123290,1.04,4285.9,4285.3,2.33350868]
[1757360123506,0.792,4285.8,4285.0,3.0]
[1757360123701,0.792,4285.8,4284.8,3.0]
[1757360123898,0.792,4285.8,4285.1,4.21]
[1757360124171,0.792,4285.8,4284.9,2.33377675]
[1757360124415,0.792,4285.8,4284.7,4.12383736]
[1757360124416,0.792,4285.8,4285.0,2.33371908]
[1757360124571,0.792,4285.8,4285.0,6.54171908]
[1757360124991,0.792,4285.8,4285.1,2.33366564]
[1757360125192,0.792,4285.8,4285.0,4.208]
[1757360125555,0.04,4285.9,4285.0,4.208]
[1757360125708,0.04,4285.9,4285.1,2.33361755]
[1757360125709,1.04,4285.9,4285.1,2.33361755]
[1757360126051,1.04,4285.9,4285.2,4.205]
[1757360127169,1.04,4285.9,4285.2,6.5386072]
[1757360127329,1.04,4285.9,4285.2,6.5385665]
[1757360127781,0.04,4285.9,4285.3,2.33355357]
[1757360128273,0.04,4285.9,4285.4,2.33347995]
[1757360128796,0.04,4285.9,4285.2,4.205]
[1757360128797,0.116,4285.4,4285.2,4.205]
[1757360128948,0.116,4285.4,4285.3,0.305]
[1757360129467,0.116,4285.4,4285.3,2.63855891]
[1757360129967,0.116,4285.4,4285.3,5.63855891]
[1757360130171,0.116,4285.4,4285.3,3.305]
[1757360130325,0.116,4285.4,4285.3,5.63855891]
[1757360130523,0.116,4285.4,4285.3,0.305]
[1757360131423,0.116,4285.4,4285.3,2.63855891]
[1757360131615,0.116,4285.4,4285.3,0.305]
[1757360132740,0.116,4285.4,4285.3,4.186]
[1757360132923,0.117,4285.4,4285.3,4.186]
[1757360134886,1.0,4284.5,4283.5,1.791]
[1757360135177,1.0,4284.2,4283.7,4.184]
[1757360135326,1.0,4283.9,4283.7,4.184]
[1757360135526,2.33414454,4284.3,4283.5,1.791]
[1757360135527,1.0,4284.2,4283.5,1.791]
[1757360135761,1.0,4284.2,4283.9,4.183]
[1757360136271,1.0,4284.7,4284.1,0.3057]
[1757360136487,1.0,4284.9,4284.4,2.33399608]
[1757360136824,4.61511315,4285.4,4284.5,4.184]
[1757360136825,0.792,4285.3,4284.5,4.184]
[1757360136930,0.001,4285.4,4284.8,2.33382357]
[1757360137374,0.001,4285.4,4284.4,1.791]
[1757360137375,0.001,4285.4,4284.9,4.184]
[1757360137596,0.001,4285.4,4285.0,4.183]
[1757360137738,0.001,4285.4,4285.2,2.33361007]
[1757360137938,0.001,4285.4,4285.0,4.183]
[1757360137939,0.001,4285.4,4285.3,2.63925891]
[1757360139981,0.001,4285.4,4285.3,4.183]
[1757360140199,0.001,4285.4,4285.2,4.12459932]
[1757360140200,1.0,4285.1,4283.8,1.816]
[1757360140398,2.0874,4283.9,4283.8,0.025]
[1757360140599,1.0,4283.9,4283.8,0.025]
[1757360140951,1.0,4284.2,4283.8,0.025]
[1757360141593,0.93340525,4284.7,4283.8,0.025]
[1757360141773,2.33390651,4284.7,4283.8,0.025]
[1757360141969,0.48960525,4284.9,4283.8,0.025]
[1757360141970,1.0,4284.5,4283.8,0.025]
[1757360142282,1.0,4284.2,4283.9,4.194]
[1757360142482,1.0,4284.1,4284.0,4.194]
[1757360142665,2.8198,4284.1,4283.8,0.025]
[1757360142867,1.5244,4284.0,4283.8,0.025]
[1757360143065,3.14966706,4283.9,4283.8,0.025]
[1757360143267,5.09926823,4283.9,4283.8,0.025]
[1757360143485,5.54306823,4283.9,4283.8,0.025]
[1757360144002,6.03267348,4283.9,4283.8,0.025]
[1757360144205,5.43572677,4283.9,4283.8,0.025]
[1757360144356,2.6118,4283.9,4283.8,0.025]
[1757360145201,4.94612152,4283.9,4283.8,0.025]
[1757360145720,1.48960525,4284.1,4283.8,0.025]
[1757360146014,1.0,4284.1,4283.8,0.025]
[1757360146149,0.48960525,4284.2,4283.8,0.025]
[1757360146503,1.2954,4283.9,4283.8,0.025]
[1757360146655,4.44506706,4283.9,4283.8,0.025]
[1757360146860,5.94612152,4283.9,4283.8,0.025]
[1757360148668,6.43572677,4283.9,4283.8,0.025]
[1757360149106,5.94612152,4283.9,4283.8,0.025]
[1757360149283,6.43572677,4283.9,4283.8,0.025]
[1757360149475,7.32842379,4283.9,4283.8,0.025]
[1757360150408,4.10140525,4283.9,4283.8,0.025]
[1757360150559,5.94612152,4283.9,4283.8,0.025]
[1757360150754,3.6118,4283.9,4283.8,0.025]
[1757360150955,1.792,4283.9,4283.8,0.025]
[1757360151431,3.3164,4283.9,4283.8,0.025]
[1757360151551,3.6118,4283.9,4283.8,0.025]
[1757360151754,0.792,4283.9,4283.8,0.027]
[1757360152011,1.2253153,4284.9,4283.8,0.3327]
[1757360152012,1.0,4284.0,4283.8,0.3327]
[1757360152173,1.0,4284.1,4283.8,0.3327]
[1757360152379,1.0,4284.1,4283.8,0.027]
[1757360152598,1.5244,4284.0,4283.8,0.027]
[1757360152780,0.2954,4283.9,4283.8,0.027]
[1757360152977,1.0,4284.1,4283.8,0.027]
[1757360153894,1.0,4284.6,4283.8,0.027]
[1757360154102,1.0,4284.1,4283.8,2.3613757]
[1757360154408,3.42172152,4283.9,4283.8,0.027]
[1757360154558,1.0874,4283.9,4283.8,0.027]
[1757360154758,0.792,4283.9,4283.8,0.027]
[1757360155008,3.12632152,4283.9,4283.8,0.027]
[1757360155227,0.792,4283.9,4283.8,0.027]
[1757360155508,3.12632152,4283.9,4283.8,0.027]
[1757360156208,3.83435367,4283.9,4283.8,0.027]
[1757360156411,5.35875367,4283.9,4283.8,0.027]
[1757360156715,2.58063215,4283.9,4283.8,0.027]
[1757360157210,0.792,4283.9,4283.8,0.027]
[1757360158135,1.0,4284.0,4283.8,0.027]
[1757360159508,1.0,4284.3,4283.9,0.3057]
[1757360159666,1.0,4284.3,4283.9,2.64001845]
[1757360160019,1.0,4284.0,4283.9,0.3057]
[1757360160584,2.33383344,4284.8,4283.9,0.3057]
[1757360160585,0.792,4284.8,4283.9,0.3057]
[1757360160782,0.792,4284.6,4283.9,2.33428221]
[1757360160972,1.0,4284.2,4283.9,2.33428221]
[1757360161401,1.0,4284.5,4284.0,2.33426583]
[1757360161618,1.792,4284.6,4283.9,2.33432152]
[1757360161818,0.792,4284.9,4284.3,2.33406637]
[1757360161967,0.792,4284.9,4284.3,6.50406637]
[1757360162319,1.792,4284.9,4284.3,4.17]
[1757360162482,1.0,4284.5,4284.3,6.50409807]
[1757360162667,1.0,4284.5,4284.3,4.17]
[1757360163569,0.116,4284.3,4284.1,2.33420315]
[1757360163775,0.116,4284.3,4283.8,3.027]
[1757360163776,1.0806,4285.0,4284.2,2.63044377]
[1757360163986,3.28395411,4285.4,4284.2,4.4623]
[1757360163987,0.792,4285.3,4284.2,4.4623]
[1757360164162,0.116,4284.3,4284.2,0.2963]
[1757360164369,0.116,4284.3,4284.2,4.4613]
[1757360164679,0.116,4284.3,4284.2,6.79545806]
[1757360165688,0.116,4284.3,4284.2,10.07285806]
[1757360166228,0.001,4285.4,4284.8,2.33381399]
[1757360166549,0.001,4285.4,4284.9,5.951]
[1757360166721,0.001,4285.4,4284.9,8.28477384]
[1757360167020,0.001,4285.4,4285.0,2.33371415]
[1757360167518,0.001,4285.4,4284.9,5.951]
[1757360167692,0.116,4285.0,4284.9,8.28477675]
[1757360167894,0.116,4285.0,4284.9,8.58107675]
[1757360168674,0.001,4285.4,4285.0,2.33372228]
[1757360168675,0.116,4285.2,4285.0,2.33372228]
[1757360168875,0.116,4285.2,4285.1,2.62996782]
[1757360169492,0.116,4285.2,4285.1,5.62996782]
[1757360169701,0.001,4285.4,4285.3,2.33355891]
[1757360169911,0.001,4285.4,4285.3,9.49055891]
[1757360170139,0.001,4285.4,4285.3,7.157]
[1757360170280,0.001,4285.4,4285.3,4.157]
[1757360170627,0.001,4285.4,4285.3,6.78685891]
[1757360172145,0.001,4285.4,4285.3,10.06425891]
[1757360172440,0.001,4285.4,4285.3,9.76885891]
[1757360174290,0.001,4285.4,4285.3,9.76685891]
[1757360178817,0.001,4285.4,4285.3,9.75685891]
[1757360180833,0.001,4285.4,4285.3,9.74785891]
[1757360181012,0.001,4285.4,4285.3,7.4143]
[1757360181353,1.0,4285.3,4284.9,1.791]
[1757360181555,1.0,4284.5,4284.3,0.002]
[1757360181692,1.0,4284.5,4284.4,4.129]
[1757360181910,2.9209,4284.5,4284.4,4.129]
[1757360182129,2.9209,4284.5,4284.3,1.793]
[1757360182445,1.0,4284.4,4284.3,1.793]
[1757360182603,1.0,4284.4,4284.3,5.849]
[1757360182804,1.4621,4284.4,4284.3,5.849]
[1757360183045,1.0,4284.8,4284.3,5.849]
[1757360183341,1.0,4284.4,4284.3,5.849]
[1757360183916,1.6257,4284.7,4284.3,5.849]
[1757360184120,1.0,4284.4,4284.3,5.849]
[1757360184578,1.2952,4284.4,4284.3,5.849]
[1757360184708,0.2952,4284.4,4284.3,5.849]
[1757360185045,1.0,4284.9,4284.3,6.1453]
[1757360185259,0.4588,4285.1,4284.4,2.33400609]
[1757360185455,1.0,4284.9,4284.5,4.123]
[1757360185772,0.4588,4285.3,4284.5,4.123]
[1757360185933,0.4588,4285.3,4284.7,2.3338429]
[1757360186112,1.1679,4285.4,4284.8,4.124]
[1757360186309,0.001,4285.4,4284.8,4.124]
[1757360186534,0.001,4285.4,4285.3,2.62985891]
[1757360186831,0.001,4285.4,4285.3,8.54285891]
[1757360189460,0.001,4285.4,4285.3,11.56955891]
[1757360189830,0.001,4285.4,4285.3,11.54285891]
[1757360190820,0.001,4285.4,4285.3,11.83695891]
[1757360191020,0.001,4285.4,4285.3,11.81025891]
[1757360191354,0.001,4285.4,4285.3,11.92625891]
[1757360192270,0.001,4285.4,4285.3,11.81025891]
[1757360192575,0.001,4285.4,4285.3,11.53685891]
[1757360192891,1.3754,4285.4,4285.3,8.904]
[1757360193022,0.001,4285.4,4285.3,11.23755891]
[1757360193674,0.001,4285.4,4285.3,11.54885891]
[1757360195795,0.001,4285.4,4285.3,11.54685891]
[1757360195998,0.001,4285.4,4285.3,11.81425891]
[1757360196929,0.001,4285.4,4285.3,11.84095891]
[1757360197131,0.001,4286.3,4285.3,11.84095891]
[1757360197132,0.001,4286.3,4286.2,2.33306891]
[1757360197348,0.001,4286.3,4286.2,11.25439959]
[1757360197484,0.001,4286.3,4286.2,11.80976891]
[1757360198133,0.001,4286.3,4286.2,11.83646891]
[1757360198279,1e-08,4286.8,4286.7,2.33279679]
[1757360198491,1e-08,4286.8,4286.7,6.46312475]
[1757360198685,1e-08,4286.8,4286.7,6.75109679]
[1757360199438,1e-08,4286.9,4286.8,5.33274237]
[1757360199584,1e-08,4286.9,4286.8,5.60014237]
[1757360199780,1e-08,4286.9,4286.8,5.91144237]
[1757360200433,1e-08,4286.9,4286.8,5.64404237]
[1757360200671,1e-08,4286.9,4286.8,6.74904237]
[1757360201217,1e-08,4286.9,4286.8,10.01644237]
[1757360202270,1e-08,4286.9,4286.8,40.01644237]
[1757360202470,0.025,4287.8,4287.7,2.33225272]
[1757360202651,0.025,4287.8,4287.7,7.12225272]
[1757360202838,1.3994,4287.8,4287.7,7.12225272]
[1757360203035,0.025,4287.8,4287.7,11.23125272]
[1757360203270,0.025,4287.8,4287.7,11.54255272]
[1757360203568,0.025,4287.8,4287.7,11.23125272]
[1757360204068,0.025,4287.8,4287.7,11.54255272]
[1757360206069,0.3374,4287.8,4287.7,7.12225272]
[1757360206269,1.829,4287.8,4287.7,11.22825272]
[1757360206442,0.025,4287.8,4287.7,11.22825272]
[1757360206937,1.829,4287.8,4287.7,11.22825272]
[1757360207255,1.829,4287.8,4287.7,7.12225272]
[1757360207460,1.087,4287.8,4287.7,11.22425272]
[1757360208031,0.025,4287.8,4287.7,11.22425272]
[1757360208386,0.026,4287.8,4287.7,11.53555272]
[1757360208731,0.026,4287.8,4287.7,11.22425272]
[1757360209135,0.026,4287.8,4287.7,11.53555272]
[1757360209684,0.026,4287.8,4287.7,41.53555272]
[1757360209685,1e-08,4287.8,4287.7,41.53555272]
[1757360209936,1e-08,4287.9,4287.8,5.33219833]
[1757360210034,1e-08,4287.9,4287.8,5.59959833]
[1757360210383,1e-08,4287.9,4287.8,5.91089833]
[1757360210585,1e-08,4287.9,4287.8,5.64349833]
[1757360211156,1e-08,4287.9,4287.8,9.73949833]
[1757360211692,1e-08,4287.9,4287.8,40.00689833]
[1757360211922,1e-08,4287.9,4287.8,39.73949833]
[1757360212387,1e-08,4287.9,4287.8,35.75949833]
[1757360212541,1e-08,4287.9,4287.8,39.85649833]
[1757360213385,1e-08,4287.9,4287.8,39.85349833]
[1757360219364,1e-08,4287.9,4287.8,35.44819833]
[1757360219588,1e-08,4287.9,4287.8,9.52919833]
[1757360219989,1.80400001,4287.9,4287.8,9.52919833]
[1757360220415,1e-08,4287.9,4287.8,9.52919833]
[1757360221132,1.78630001,4287.9,4287.8,9.52919833]
[1757360221825,1.35680001,4287.9,4287.8,9.52919833]
[1757360222018,0.4295,4288.2,4288.1,2.33203516]
[1757360222204,0.001,4288.3,4288.2,5.33198078]
[1757360222518,0.51436595,4290.8,4289.7,2.33116534]
[1757360222519,0.4295,4290.4,4289.7,2.33116534]